bitfinex/quotes_ETHUSD_20240722
["timestamp","ask_amount","ask_price","bid_price","bid_amount"]
[1721635098426,2.87193,3482.0,3481.1,1.024]
[1721635098427,2.3775,3481.7,3481.1,1.024]
[1721635098738,2.3775,3481.7,3481.2,2.87256]
[1721635099355,2.3775,3481.7,3481.3,2.87247]
[1721635099570,2.3775,3481.7,3481.4,2.87239]
[1721635099933,2.3775,3481.7,3481.3,1.024]
[1721635100158,2.3775,3481.7,3481.3,3.89648]
[1721635100359,2.3775,3481.7,3481.4,2.87238]
[1721635100632,2.3775,3481.7,3481.5,2.87232]
[1721635100957,2.3775,3481.7,3481.3,3.89648]
[1721635101380,2.3775,3481.7,3481.5,2.87232]
[1721635101568,2.3775,3481.7,3481.5,3.89632]
[1721635101938,2.3775,3481.7,3481.5,2.87232]
[1721635105135,2.3775,3481.7,3481.6,2.87224]
[1721635105335,2.3163,3482.2,3481.6,3.549096]
[1721635105567,2.3163,3482.2,3481.6,2.87224]
[1721635105756,2.3163,3482.2,3481.7,2.87213]
[1721635108347,2.3163,3482.2,3481.5,3.89631]
[1721635108348,2.3163,3482.2,3481.6,2.87222]
[1721635109344,2.3163,3482.2,3481.7,2.87215]
[1721635109579,2.3163,3482.2,3481.7,3.89615]
[1721635110082,2.3163,3482.2,3481.8,2.87206]
[1721635111338,2.3163,3482.2,3481.7,1.024]
[1721635111538,3.2183645,3482.2,3481.6,2.87218]
[1721635113288,0.9020645,3482.1,3481.6,2.87218]
[1721635114696,0.9020645,3482.1,3481.5,3.8963]
[1721635117459,0.9020645,3482.0,3481.5,3.8963]
[1721635118372,0.9020645,3482.0,3481.6,2.87224]
[1721635122266,0.9020645,3482.0,3481.5,1.024]
[1721635122267,0.9020645,3482.0,3481.7,2.87215]
[1721635122601,0.9020645,3482.0,3481.7,3.89615]
[1721635125193,0.9020645,3482.0,3481.8,2.87206]
[1721635125390,0.9020645,3482.0,3481.7,1.024]
[1721635125590,0.9020645,3482.0,3481.7,3.89615]
[1721635126676,0.9020645,3482.0,3481.8,2.87202]
[1721635126995,0.9020645,3482.0,3481.7,1.024]
[1721635126996,0.9020645,3482.0,3481.9,3.89599]
[1721635128785,0.9020645,3482.0,3481.7,3.8961]
[1721635128981,2.2588,3481.9,3481.7,1.024]
[1721635129186,2.2588,3481.9,3481.7,3.89615]
[1721635131734,2.2588,3481.9,3481.8,2.87207]
[1721635132024,10.35135,3482.7,3481.9,2.87194]
[1721635132025,2.4684,3482.5,3481.9,2.87194]
[1721635132183,2.4684,3482.5,3481.9,1.024]
[1721635132792,0.90450069,3482.1,3481.9,1.024]
[1721635133622,0.90450069,3482.1,3481.9,3.89599]
[1721635134230,0.90450069,3482.1,3482.0,2.87191]
[1721635135334,0.90450069,3482.1,3482.0,6.420616]
[1721635136743,0.90450069,3482.1,3482.0,8.833216]
[1721635137604,0.90450069,3482.1,3482.0,6.420616]
[1721635137818,2.3197,3482.6,3482.1,2.87182]
[1721635138006,2.3197,3482.6,3482.2,1.024]
[1721635138212,2.3197,3482.6,3482.1,2.87182]
[1721635138521,2.3197,3482.6,3482.2,1.024]
[1721635142613,2.3197,3482.6,3482.2,3.89572]
[1721635143177,7.48,3482.7,3482.4,1.024]
[1721635143305,7.48,3482.7,3482.6,3.89541]
[1721635143504,2.3086,3482.9,3482.7,2.87132]
[1721635143715,2.3086,3482.9,3482.6,1.024]
[1721635144105,2.3086,3482.9,3482.6,3.8954]
[1721635144308,2.3086,3482.9,3482.6,1.024]
[1721635145852,2.3086,3482.9,3482.4,3.89557]
[1721635146018,2.91701307,3482.9,3482.4,3.89557]
[1721635146217,5.17979,3482.9,3482.2,3.89572]
[1721635146418,5.33154,3482.7,3482.2,1.024]
[1721635146650,5.33154,3482.7,3482.0,3.89591]
[1721635146651,2.4602,3482.7,3482.0,3.89591]
[1721635147038,5.33154,3482.7,3482.0,3.89591]
[1721635147222,5.33154,3482.7,3482.2,1.024]
[1721635147427,2.4602,3482.7,3482.2,1.024]
[1721635148078,2.4602,3482.7,3482.2,3.89572]
[1721635148277,2.4602,3482.7,3482.4,1.024]
[1721635150145,2.4602,3482.7,3482.4,3.89557]
[1721635150855,2.4448,3483.0,3482.6,1.024]
[1721635151230,2.4448,3483.0,3482.6,3.89541]
[1721635151431,2.4448,3483.0,3482.6,1.024]
[1721635151852,5.31589,3483.0,3482.6,1.024]
[1721635152070,5.31589,3483.0,3482.4,1.024]
[1721635152456,5.31589,3483.0,3482.4,3.89557]
[1721635154743,2.4448,3483.0,3482.4,3.89557]
[1721635154948,2.4448,3483.0,3482.5,2.87149]
[1721635156347,2.4448,3483.0,3482.6,1.024]
[1721635157361,2.4448,3483.0,3482.6,3.8954]
[1721635160549,9.7731,3483.3,3482.8,1.024]
[1721635160862,9.7731,3483.3,3483.2,1.024]
[1721635161449,9.7731,3483.3,3483.0,3.89503]
[1721635162590,9.7731,3483.3,3483.1,2.87099]
[1721635163288,7.48,3483.3,3483.1,2.87099]
[1721635163485,7.48,3483.3,3483.2,1.024]
[1721635164093,7.48,3483.3,3483.2,3.89492]
[1721635164828,2.3016,3483.7,3483.4,2.87074]
[1721635165034,2.3016,3483.7,3483.4,3.89474]
[1721635167900,7.48,3484.0,3483.4,3.89474]
[1721635167901,7.48,3484.0,3483.5,2.87066]
[1721635168095,7.48,3484.0,3483.6,1.024]
[1721635168296,2.2665,3484.1,3483.6,1.024]
[1721635168497,2.2665,3484.1,3483.6,3.89459]
[1721635169447,2.2665,3484.1,3483.7,2.87049]
[1721635169596,2.2665,3484.1,3483.8,1.024]
[1721635173437,2.2665,3484.1,3483.8,3.8944]
[1721635174006,2.2665,3484.1,3483.8,1.024]
[1721635176198,2.2665,3484.1,3483.3,2.8708]
[1721635176397,2.3142,3483.9,3483.0,2.87106]
[1721635176594,2.3142,3483.9,3482.9,2.4821]
[1721635176595,2.87068,3483.5,3482.9,2.87115]
[1721635176846,2.3142,3483.4,3482.6,2.87141]
[1721635177010,2.87089,3483.3,3482.6,2.87141]
[1721635177332,2.87089,3483.3,3482.6,3.89541]
[1721635177508,2.87089,3483.3,3482.8,1.024]
[1721635177711,5.18496,3483.4,3482.7,2.87133]
[1721635177927,5.703456,3483.4,3482.7,2.87133]
[1721635178437,5.703456,3483.4,3482.8,1.024]
[1721635178956,2.87084,3483.3,3482.8,1.024]
[1721635180317,2.87084,3483.3,3482.5,2.87149]
[1721635180637,5.703496,3483.4,3482.7,1.024]
[1721635180801,2.87084,3483.3,3482.7,1.024]
[1721635184008,2.87084,3483.3,3482.7,3.89533]
[1721635184208,2.3142,3483.4,3482.7,3.89533]
[1721635184406,2.3142,3483.4,3482.9,1.024]
[1721635185761,2.3142,3483.4,3483.0,2.87107]
[1721635186127,2.3142,3483.4,3482.9,1.024]
[1721635187961,2.3142,3483.4,3483.0,2.87107]
[1721635188156,2.3142,3483.4,3482.9,1.024]
[1721635188369,2.3142,3483.4,3482.9,3.89515]
[1721635194151,2.3142,3483.4,3483.1,2.87094]
[1721635195689,2.3142,3483.4,3482.9,4.571808]
[1721635195690,2.3142,3483.4,3483.2,2.8709]
[1721635197424,2.3142,3483.4,3483.0,2.87103]
[1721635197571,2.3142,3483.4,3483.1,2.87099]
[1721635198107,2.3142,3483.4,3483.0,2.87108]
[1721635198803,5.18497,3483.4,3482.8,2.87125]
[1721635199014,5.18497,3483.4,3482.7,1.024]
[1721635199174,5.18497,3483.4,3482.7,3.89532]
[1721635199499,2.87085,3483.3,3482.7,3.89532]
[1721635200128,2.3142,3483.4,3482.8,2.87119]
[1721635200271,2.29758,3483.4,3482.8,2.87119]
[1721635202623,5.16834,3483.4,3482.8,2.87119]
[1721635202823,5.16834,3483.4,3482.9,1.024]
[1721635203021,2.87085,3483.3,3482.9,1.024]
[1721635203319,2.87085,3483.3,3482.3,1.49715028]
[1721635203320,2.4025,3483.0,3482.3,1.49715028]
[1721635203614,0.89418961,3483.3,3482.3,1.49715028]
[1721635203615,2.8715,3482.5,3482.3,1.49715028]
[1721635203848,2.3036,3482.5,3482.3,1.49715028]
[1721635203975,0.9028661,3483.0,3482.8,2.87125]
[1721635204326,7.48,3483.1,3482.9,1.024]
[1721635205098,7.48,3483.1,3482.7,1.024]
[1721635205426,2.4975,3483.0,3482.3,2.52115028]
[1721635205631,2.87123,3482.9,3482.3,1.49715028]
[1721635205852,2.87139,3482.7,3482.3,1.49715028]
[1721635206112,2.87131,3482.8,3482.3,1.49715028]
[1721635206275,2.87133,3482.7,3482.3,1.49715028]
[1721635206474,2.87126,3482.8,3482.3,1.49715028]
[1721635206879,2.87126,3482.8,3482.3,2.52115028]
[1721635207109,2.87139,3482.7,3482.3,2.52115028]
[1721635207309,3.7741261,3482.8,3482.3,1.49715028]
[1721635207531,5.1556,3482.5,3482.3,1.49715028]
[1721635208085,2.2841,3482.5,3482.3,1.49715028]
[1721635208404,5.24856,3482.8,3482.3,2.52115028]
[1721635208584,2.3773,3482.8,3482.5,1.024]
[1721635208781,11.5549869,3483.1,3482.7,1.024]
[1721635208782,10.7601661,3483.1,3482.7,1.024]
[1721635208981,9.8573,3483.1,3482.7,1.024]
[1721635209902,9.8573,3483.1,3482.5,3.89544]
[1721635210944,12.72833,3483.1,3482.5,1.024]
[1721635211931,2.87127,3482.8,3482.3,1.49715028]
[1721635212410,2.87158,3482.4,3482.3,1.49715028]
[1721635213520,3.7743261,3482.6,3482.3,1.49715028]
[1721635213712,2.87151,3482.5,3482.3,1.49715028]
[1721635215533,2.87158,3482.4,3482.3,1.49715028]
[1721635217647,8.21916,3482.4,3482.3,1.49715028]
[1721635217954,9.1220261,3482.4,3482.3,1.49715028]
[1721635218836,2.87183,3482.1,3481.5,1.024]
[1721635219548,2.87206,3481.9,3480.9,2.87274]
[1721635219722,2.87206,3481.9,3481.3,2.87247]
[1721635219921,2.87183,3482.1,3481.2,1.59853]
[1721635219922,2.87183,3482.1,3481.4,3.8964]
[1721635220323,2.87168,3482.3,3481.5,2.87231]
[1721635220324,2.87177,3482.2,3481.5,2.87231]
[1721635220639,2.87177,3482.2,3481.6,1.024]
[1721635220840,2.87183,3482.1,3481.6,1.024]
[1721635221021,2.87183,3482.1,3481.3,2.87245]
[1721635221227,2.87192,3482.0,3481.4,1.024]
[1721635221651,2.87203,3481.9,3481.4,1.024]
[1721635222720,2.4756,3481.8,3481.4,1.024]
[1721635223364,5.34768,3481.8,3481.4,1.024]
[1721635224339,5.34768,3481.8,3481.2,3.4471]
[1721635225429,2.4756,3481.8,3481.2,3.4471]
[1721635226145,2.4756,3481.8,3481.3,1.024]
[1721635228892,2.4756,3481.8,3481.3,3.89642]
[1721635229098,5.24025,3482.2,3481.5,1.024]
[1721635229393,5.24025,3482.2,3481.7,1.024]
[1721635232202,2.3685,3482.2,3481.5,1.024]
[1721635232887,2.3685,3482.2,3481.6,2.87218]
[1721635234476,2.3685,3482.2,3481.6,0.6928423]
[1721635234682,2.3685,3482.2,3481.7,1.024]
[1721635235015,2.3685,3482.2,3481.7,3.89615]
[1721635237322,2.3685,3482.2,3481.7,1.024]
[1721635237614,2.3685,3482.2,3481.7,3.89615]
[1721635237767,2.3685,3482.2,3481.8,2.87207]
[1721635238602,2.3685,3482.2,3481.7,1.024]
[1721635239615,2.3685,3482.2,3481.7,3.89614]
[1721635242109,2.3685,3482.2,3481.7,2.87214]
[1721635244039,2.3685,3482.2,3481.8,2.87206]
[1721635244236,2.3685,3482.2,3481.6,3.89621]
[1721635244440,2.3685,3482.2,3481.7,2.87215]
[1721635245322,2.3685,3482.2,3481.5,2.87231]
[1721635245323,5.2403,3482.2,3481.5,2.87231]
[1721635245540,2.4446,3482.0,3481.5,2.87231]
[1721635245717,2.4446,3482.0,3481.6,2.87223]
[1721635251303,2.4446,3482.0,3481.7,2.87214]
[1721635254035,2.4446,3482.0,3481.8,2.87207]
[1721635254213,2.4446,3482.0,3481.6,1.024]
[1721635254566,2.4446,3482.0,3481.7,2.87214]
[1721635255750,0.9028661,3482.2,3481.8,1.024]
[1721635255916,2.3207,3482.4,3482.1,1.024]
[1721635256254,7.48,3482.5,3482.3,1.024]
[1721635256456,0.9028661,3482.6,3482.5,2.8715]
[1721635256751,2.3534,3483.0,3482.7,2.87127]
[1721635256952,3.2562661,3483.0,3482.7,3.89527]
[1721635257115,2.3534,3483.0,3482.8,2.87124]
[1721635258312,2.3534,3483.0,3482.7,1.024]
[1721635258665,2.3534,3483.0,3482.4,0.389576]
[1721635258666,2.3534,3483.0,3482.5,1.024]
[1721635258947,2.3534,3483.0,3482.6,2.87141]
[1721635259316,2.3534,3483.0,3482.5,1.6888426]
[1721635259317,0.9028661,3483.1,3482.7,3.89531]
[1721635259514,0.9028661,3483.2,3482.8,2.87122]
[1721635260265,0.90174391,3483.2,3482.8,2.87122]
[1721635260621,0.90174391,3483.2,3482.7,1.024]
[1721635260826,3.6671069,3483.3,3482.5,2.87148]
[1721635261014,2.87093,3483.2,3482.5,2.87148]
[1721635261736,2.87117,3482.9,3482.2,1.024]
[1721635261946,3.6084069,3483.1,3482.2,1.024]
[1721635262149,2.87126,3482.8,3482.2,1.024]
[1721635262318,5.27564,3483.0,3482.2,2.87172]
[1721635262515,5.27564,3483.0,3482.3,2.87165]
[1721635263326,2.4045,3483.0,3482.5,2.87149]
[1721635265419,5.27559,3483.0,3482.4,1.024]
[1721635265616,2.87124,3482.9,3482.1,2.87181]
[1721635265818,2.87125,3482.8,3482.2,1.024]
[1721635267044,2.3152,3482.5,3481.7,2.87215]
[1721635267366,5.18671,3482.5,3481.6,1.024]
[1721635267537,2.87167,3482.3,3481.6,1.024]
[1721635267740,2.87175,3482.2,3481.6,1.024]
[1721635270164,3.7741978,3482.4,3481.6,3.89623]
[1721635270323,2.87159,3482.4,3481.7,2.87215]
[1721635270524,2.87159,3482.4,3481.8,1.024]
[1721635270736,3.7741978,3482.4,3481.8,1.024]
[1721635271455,3.2178078,3482.5,3481.8,3.89605]
[1721635271790,2.3152,3482.5,3482.2,1.024]
[1721635272654,2.3152,3482.5,3482.0,3.89591]
[1721635274185,2.3152,3482.5,3482.1,2.87182]
[1721635274641,0.9026078,3482.7,3482.2,3.89567]
[1721635274846,1.2039069,3482.8,3482.2,3.89567]
[1721635274847,2.4525,3482.8,3482.2,3.89567]
[1721635275047,2.4525,3482.8,3482.3,2.87166]
[1721635276194,7.48,3483.0,3482.4,1.024]
[1721635276510,7.48,3483.0,3482.5,2.87148]
[1721635276849,7.48,3483.0,3482.4,4.3528029]
[1721635277050,7.48,3483.0,3482.2,1.024]
[1721635277348,10.35115,3483.0,3482.3,2.8716]
[1721635277563,11.2537578,3483.0,3482.3,2.8716]
[1721635278366,2.87117,3482.9,3482.3,2.8716]
[1721635278988,2.87117,3482.9,3482.2,1.024]
[1721635279284,2.4351,3482.6,3482.1,2.87181]
[1721635280173,0.9026078,3482.9,3482.4,2.87151]
[1721635280351,5.3494,3483.0,3482.4,2.87151]
[1721635282147,5.3494,3483.0,3482.3,1.024]
[1721635282388,2.87127,3482.8,3482.1,3.89582]
[1721635283398,6.2520078,3483.0,3482.1,1.70078]
[1721635283399,2.87134,3482.7,3482.1,1.70078]
[1721635283871,2.3513,3482.4,3481.4,2.87233]
[1721635284082,2.3513,3482.4,3481.6,1.024]
[1721635284083,5.22292,3482.4,3481.6,1.024]
[1721635284249,5.22292,3482.4,3481.8,2.87207]
[1721635284453,2.3513,3482.4,3481.9,2.87198]
[1721635284658,2.87135,3482.7,3482.0,2.87187]
[1721635284659,3.7739578,3482.7,3482.0,2.87187]
[1721635284989,11.1574069,3482.8,3482.2,2.87169]
[1721635284990,9.9535,3482.8,3482.2,2.87169]
[1721635285167,2.4735,3482.8,3482.2,2.87169]
[1721635286376,2.4735,3482.8,3482.0,3.8959]
[1721635286377,5.34476,3482.8,3482.0,3.8959]
[1721635286588,2.87136,3482.7,3482.0,3.8959]
[1721635287314,2.87134,3482.7,3481.8,2.87207]
[1721635287599,2.87155,3482.5,3481.8,3.89607]
[1721635288396,2.87155,3482.5,3481.9,2.87198]
[1721635290179,3.7739478,3482.7,3482.0,2.8719]
[1721635290385,2.87134,3482.7,3482.0,3.8959]
[1721635290775,2.87134,3482.7,3482.1,2.87182]
[1721635291506,2.87134,3482.7,3482.0,1.024]
[1721635291716,3.3761078,3482.8,3482.0,1.93656]
[1721635291917,0.9026078,3483.0,3482.6,3.89535]
[1721635292209,7.48,3483.2,3482.6,3.89535]
[1721635292210,8.3826078,3483.2,3482.9,2.87114]
[1721635292414,0.9026078,3483.3,3483.0,1.413514]
[1721635292569,0.9026078,3483.4,3483.0,1.413514]
[1721635292764,0.9026078,3483.4,3483.0,1.024]
[1721635292964,0.9026078,3483.6,3483.2,1.024]
[1721635293167,0.9026078,3483.9,3483.4,3.89474]
[1721635293361,0.9026078,3484.0,3483.4,3.89474]
[1721635293566,8.3826078,3484.1,3483.4,3.89474]
[1721635293982,0.9026078,3484.0,3483.4,3.89474]
[1721635294177,7.48,3484.1,3483.4,2.87074]
[1721635294178,8.3826078,3484.1,3483.4,2.87074]
[1721635294702,11.2528078,3484.1,3483.4,2.87074]
[1721635295010,10.3502,3484.1,3483.4,2.87074]
[1721635295374,11.2528078,3484.1,3483.4,2.87074]
[1721635295571,7.48,3484.1,3483.4,0.574166]
[1721635295786,7.48,3484.1,3483.1,2.87099]
[1721635295988,7.48,3484.1,3483.7,2.87046]
[1721635296395,7.48,3484.1,3483.1,2.87099]
[1721635296703,7.48,3484.1,3483.9,2.87031]
[1721635297032,7.48,3484.1,3483.7,2.87051]
[1721635298239,7.48,3484.1,3483.5,2.87066]
[1721635298810,7.48,3484.1,3483.3,2.87077]
[1721635299008,2.3682,3483.9,3483.0,2.87105]
[1721635299832,5.23858,3483.9,3483.0,2.87105]
[1721635300006,2.87045,3483.8,3483.0,2.87105]
[1721635300205,2.87052,3483.7,3483.0,2.87105]
[1721635301532,2.87066,3483.6,3482.8,2.87124]
[1721635301735,2.87052,3483.7,3482.8,3.685925]
[1721635302613,2.87068,3483.5,3482.8,3.685925]
[1721635303062,2.87068,3483.5,3482.8,2.87124]
[1721635303220,2.87081,3483.4,3482.4,2.87157]
[1721635303672,2.87081,3483.4,3482.6,2.87135]
[1721635305042,2.36,3483.3,3482.6,2.87135]
[1721635305775,2.36,3483.3,3482.4,2.87157]
[1721635305776,2.87108,3483.1,3482.4,2.87157]
[1721635305974,5.23085,3483.3,3482.3,2.87164]
[1721635305975,2.87109,3483.0,3482.3,2.87164]
[1721635307387,2.87117,3482.9,3482.2,2.87173]
[1721635308576,2.87143,3482.6,3481.8,2.87207]
[1721635308896,2.87143,3482.6,3481.8,3.746499]
[1721635309338,2.8715,3482.5,3481.8,3.746499]
[1721635311459,2.87143,3482.6,3481.9,2.87199]
[1721635312275,2.87136,3482.7,3482.0,2.8719]
[1721635312681,2.87125,3482.8,3482.1,2.8718]
[1721635312903,2.87109,3483.0,3482.2,2.87174]
[1721635313190,2.87109,3483.0,3482.0,0.574405]
[1721635313191,2.87126,3482.8,3482.0,3.446275]
[1721635313369,2.87126,3482.8,3482.1,2.87181]
[1721635314084,2.87134,3482.7,3482.0,0.574405]
[1721635314283,2.87144,3482.6,3482.0,0.574405]
[1721635317002,2.4963,3483.1,3482.0,3.446305]
[1721635317003,2.87134,3482.7,3482.0,3.446305]
[1721635317304,2.87109,3483.0,3482.0,3.446305]
[1721635317305,2.87123,3482.9,3482.1,2.87177]
[1721635317452,2.87123,3482.9,3482.2,2.87173]
[1721635318893,5.3673,3483.1,3482.0,5.919405]
[1721635318894,2.4963,3483.1,3482.5,2.87148]
[1721635319201,8.3826078,3483.4,3482.5,0.574314]
[1721635319202,7.48,3483.4,3482.5,0.574314]
[1721635319365,7.48,3483.4,3482.7,2.87128]
[1721635319584,7.48,3483.4,3482.8,2.87123]
[1721635319585,10.35077,3483.4,3482.8,2.87123]
[1721635320397,10.35077,3483.4,3482.9,2.87115]
[1721635320398,7.48,3483.4,3482.9,2.87115]
[1721635320549,7.48,3483.4,3482.9,0.287115]
[1721635320757,7.48,3483.4,3482.8,2.87125]
[1721635321367,7.48,3483.4,3482.1,2.462]
[1721635321368,7.48,3483.4,3482.9,2.87109]
[1721635321577,7.48,3483.4,3483.0,2.87108]
[1721635321975,7.48,3483.4,3482.7,2.87132]
[1721635321976,7.48,3483.4,3482.8,2.8712]
[1721635322352,2.87085,3483.3,3482.6,2.87139]
[1721635322554,2.87085,3483.3,3482.7,3.690746]
[1721635323196,2.87085,3483.3,3482.5,2.87147]
[1721635323403,2.2568,3483.5,3482.1,2.4481]
[1721635323404,2.87107,3483.1,3482.1,5.31992]
[1721635323704,3.1594078,3483.5,3482.0,3.446255]
[1721635323705,2.87126,3482.8,3482.0,3.446255]
[1721635323857,2.87148,3482.6,3482.0,0.574405]
[1721635324062,2.87148,3482.6,3482.1,0.3446335]
[1721635325393,5.16776,3482.8,3482.1,0.3446335]
[1721635325700,2.87133,3482.7,3482.1,0.3446335]
[1721635325996,2.87141,3482.6,3482.1,0.3446335]
[1721635326881,5.1678,3482.8,3482.1,3.2164535]
[1721635327301,5.1678,3482.8,3482.2,0.37908585]
[1721635328108,2.87136,3482.7,3482.2,0.37908585]
[1721635328579,2.87151,3482.5,3482.0,0.574405]
[1721635329155,5.16775,3482.8,3482.0,0.574405]
[1721635329456,2.87158,3482.4,3481.7,2.87213]
[1721635330185,2.87166,3482.3,3481.7,2.87213]
[1721635333869,2.8715,3482.5,3481.8,2.87207]
[1721635334312,2.87158,3482.4,3481.8,2.87207]
[1721635337182,2.87158,3482.4,3481.6,2.87223]
[1721635337515,2.87166,3482.3,3481.7,0.57466848]
[1721635338310,2.87166,3482.3,3481.7,3.44680848]
[1721635344247,2.87166,3482.3,3481.8,1.027]
[1721635347045,2.87201,3481.9,3481.4,0.0020648]
[1721635347549,2.87179,3482.2,3481.4,0.0020648]
[1721635347550,2.87191,3482.0,3481.4,0.0020648]
[1721635347845,2.87191,3482.0,3481.5,1.08154946]
[1721635348399,2.87187,3482.1,3481.5,3.95380946]
[1721635348628,2.87187,3482.1,3481.5,4.98080946]
[1721635349904,2.87171,3482.3,3481.7,1.027]
[1721635350106,2.87171,3482.3,3481.7,3.89915]
[1721635351399,2.87176,3482.2,3481.7,1.027]
[1721635355029,2.87192,3482.0,3481.5,1.027]
[1721635355363,2.87192,3482.0,3481.4,2.8744648]
[1721635355564,2.87192,3482.0,3481.5,0.91903248]
[1721635355769,2.87192,3482.0,3481.5,1.94603248]
[1721635356128,3.3160078,3482.1,3481.5,1.94603248]
[1721635356328,5.28523,3482.1,3481.5,1.94603248]
[1721635356535,5.28523,3482.1,3481.8,0.00204224]
[1721635357473,2.87191,3482.0,3481.8,0.00204224]
[1721635359156,2.4134,3482.1,3481.8,0.00204224]
[1721635359362,5.28523,3482.1,3481.8,0.00204224]
[1721635360535,2.87191,3482.0,3481.8,0.00204224]
[1721635362055,2.87199,3481.9,3481.8,0.00204224]
[1721635363376,5.74398,3481.9,3481.8,0.00204224]
[1721635363584,6.559718,3481.9,3481.8,0.00204224]
[1721635370569,7.4623258,3481.9,3481.8,0.00204224]
[1721635371217,6.559718,3481.9,3481.8,0.00204224]
[1721635372118,7.4623258,3481.9,3481.8,0.00204224]
[1721635373373,6.559718,3481.9,3481.8,0.00204224]
[1721635373599,7.46324784,3481.9,3481.8,0.00204224]
[1721635373996,7.463253,3481.9,3481.8,0.00204224]
[1721635378009,6.559718,3481.9,3481.8,0.00204224]
[1721635378525,7.46325824,3481.9,3481.8,0.00204224]
[1721635379626,16.07069345,3481.9,3480.2,0.60009256]
[1721635379824,16.07069345,3481.9,3479.9,3.34003607]
[1721635379825,2.2611,3480.8,3480.4,0.55]
[1721635380044,2.2611,3480.8,3479.8,5.1346]
[1721635380335,2.87317,3480.5,3479.8,6.16162]
[1721635380498,2.87307,3480.6,3479.8,6.16162]
[1721635380685,2.87307,3480.6,3479.9,2.87362]
[1721635380889,2.87316,3480.5,3479.5,5.37325]
[1721635381120,2.87357,3480.0,3479.5,2.4993]
[1721635381441,2.87357,3480.0,3479.1,3.47438256]
[1721635381442,2.87365,3479.9,3479.2,5.37352]
[1721635381794,2.87348,3480.1,3479.3,3.90113]
[1721635382119,6.26085755,3480.4,3479.5,3.90096]
[1721635382321,2.87341,3480.2,3479.6,0.677508]
[1721635382730,2.87341,3480.2,3479.5,2.87396]
[1721635383035,0.90375755,3480.5,3479.5,2.87396]
[1721635383036,0.90375755,3480.5,3479.6,0.05747199]
[1721635383338,2.87284,3480.9,3480.1,5.12605]
[1721635383917,2.87275,3481.0,3480.1,2.2526]
[1721635384118,2.87282,3480.9,3480.2,0.55]
[1721635384701,2.87298,3480.7,3480.2,0.55]
[1721635384905,2.87282,3480.9,3480.2,3.42333]
[1721635385843,2.8729,3480.8,3480.2,0.55]
[1721635388024,2.87278,3481.0,3480.2,0.55]
[1721635388237,2.87292,3480.8,3480.2,0.55]
[1721635389106,2.87306,3480.7,3480.2,0.55]
[1721635389410,0.574588,3480.6,3480.2,0.55]
[1721635389720,2.87306,3480.7,3480.2,0.55]
[1721635390250,2.2812,3481.1,3479.8,5.29039]
[1721635390394,2.87301,3480.7,3479.9,0.55]
[1721635390733,2.2812,3481.1,3480.0,2.87356]
[1721635390734,2.87282,3480.9,3480.0,2.87356]
[1721635390890,2.87282,3480.9,3480.1,3.42347]
[1721635391110,2.87282,3480.9,3480.2,3.42339]
[1721635391337,2.87282,3480.9,3480.1,2.87342]
[1721635391338,2.87294,3480.8,3480.1,2.87342]
[1721635391559,2.87294,3480.8,3480.2,0.55]
[1721635392564,2.87299,3480.7,3480.2,0.55]
[1721635392717,2.87299,3480.7,3480.0,0.55]
[1721635393062,5.21577,3480.6,3480.0,0.55]
[1721635395049,2.87316,3480.5,3480.0,0.55]
[1721635395215,2.3427,3480.6,3479.8,5.29041]
[1721635395666,2.3427,3480.6,3479.4,2.4169]
[1721635395960,2.87353,3480.1,3479.4,5.2909]
[1721635397032,2.87357,3480.0,3479.4,2.874]
[1721635397236,2.87357,3480.0,3479.5,0.55]
[1721635397443,2.87357,3480.0,3479.3,0.55]
[1721635397654,2.8737,3479.9,3479.3,3.42414]
[1721635398166,2.8737,3479.9,3479.3,0.55]
[1721635399078,5.14701,3480.1,3478.6,5.30431]
[1721635399079,2.2735,3480.1,3478.6,5.30431]
[1721635399233,7.48,3480.4,3478.7,2.87463]
[1721635399234,2.87402,3479.5,3478.7,2.87463]
[1721635399637,2.87402,3479.5,3478.8,2.87455]
[1721635399952,2.87407,3479.4,3478.6,5.30431]
[1721635400156,2.87407,3479.4,3478.7,2.87463]
[1721635401079,2.2872,3479.7,3478.6,5.30425]
[1721635401080,2.87414,3479.3,3478.6,5.30425]
[1721635401278,2.87422,3479.2,3478.6,0.817912]
[1721635401490,2.87422,3479.2,3478.5,2.87475]
[1721635402143,2.87422,3479.2,3478.6,0.55]
[1721635404003,2.87422,3479.2,3478.6,3.42471]
[1721635404207,2.87404,3479.5,3478.6,3.42471]
[1721635404377,2.8742,3479.3,3478.6,3.42471]
[1721635405187,2.87424,3479.2,3478.6,0.55]
[1721635405387,2.3006,3479.1,3478.5,3.42478]
[1721635405588,2.87456,3478.8,3477.8,2.87536]
[1721635405802,2.87447,3478.9,3477.7,2.4047]
[1721635406008,2.3006,3479.1,3478.0,2.8752]
[1721635406009,2.8744,3479.0,3478.0,2.8752]
[1721635406318,2.8744,3479.0,3477.7,2.4047]
[1721635406319,2.3006,3479.1,3478.1,2.87513]
[1721635406612,2.3006,3479.1,3478.5,2.87479]
[1721635406820,2.3006,3479.1,3478.4,2.87488]
[1721635406998,2.3006,3479.1,3478.5,0.55]
[1721635407741,5.17491,3479.1,3478.5,0.55]
[1721635409446,2.3006,3479.1,3478.5,0.55]
[1721635409644,2.3006,3479.1,3478.4,0.55]